Workbook

Sheet Enunciado
A1: No quadro 1 apresenta-se um udograma relativo a uma chuvada erosiva.
A2: a) Calcule a energia cinética da chuvada e o índice de erosividade Ecr30, utilizando as equações propostas por Wischmeier e Smith;
A3: b) Calcule a energia cinética da chuvada e o índice de erosividade Ecr30, utilizando as equações propostas pela RUSLE2.
A5: Quadro 1 Udograma de uma chuvada erosiva (adaptado de Morgan, 2005)
A6: t (min) | B6: R (mm)
A7: 0 | B7: 0
A8: 15 | B8: 1.52
A9: 30 | B9: 15.74
A10: 45 | B10: 41.9
A11: 60 | B11: 73.4
A12: 75 | B12: 81.78
A13: 90 | B13: 82.03
A14: 105 | B14: 82.03

Sheet Wischmeier
A2: t (min) | B2: R (mm) | C2: DR (mm) | D2: r (mm/h) | E2: ec (MJ ha-1 mm-1) | F2: DEc (MJ ha-1)
A3: (1) | B3: (2) | C3: (3) | D3: (4) | E3: (5) | F3: (6) = (3) X (5)
A4: 0 | B4: 0
A5: 15 | B5: 1.52 | C5: =B5-B4 -> 1.52 | D5: =C5/$D$19 -> 6.08 | E5: =IF(D5<=76.2,0.119+0.0873*LOG10(D5),0.283) -> 0.1874347825 | F5: =C5*E5 -> 0.2849008694
A6: 30 | B6: 15.74 | C6: =B6-B5 -> 14.22 | D6: 56.88 | E6: =IF(D6<=76.2,0.119+0.0873*LOG10(D6),0.283) -> 0.272207972 | F6: =C6*E6 -> 3.870797362
A7: 45 | B7: 41.9 | C7: 26.16 | D7: 104.64 | E7: 0.283 | F7: 7.40328
A8: 60 | B8: 73.4 | C8: 31.5 | D8: 126 | E8: 0.283 | F8: 8.9145
A9: 75 | B9: 81.78 | C9: 8.38 | D9: 33.52 | E9: 0.2521590401 | F9: 2.113092756
A10: 90 | B10: 82.03 | C10: 0.25 | D10: 1 | E10: 0.119 | F10: 0.02975
A11: 105 | B11: 82.03 | C11: 0
E12: Ec (Mj ha-1) = | F12: =SUM(F5:F10) -> 22.61632099
A13: (3) DRi = Ri - Ri-1;
A14: (4) ri = Dri / Dt;
A15: (5)
B17: com ec em MJ ha-1 mm-1 e r em mm/h
A19: Dt = | B19: 15 | C19: min = | D19: =15/60 -> 0.25 | E19: h
A20: r30 = | B20: =(C7+C8)/0.5 -> 115.32 | C20: mm/h
A21: Ecr30 = | B21: =F12*B20 -> 2608.114136 | C21: (MJ mm ha-1 h-1)
A22: Ecr30 = | B22: =F12*MIN(B20,63.5) -> 1436.136383 | C22: (MJ mm ha-1 h-1) | E22: com

Sheet RUSLE2
A2: t (min) | B2: R (mm) | C2: DR (mm) | D2: r (mm/h) | E2: ec (MJ ha-1 mm-1) | F2: DEc (MJ ha-1)
A3: (1) | B3: (2) | C3: (3) | D3: (4) | E3: (5) | F3: (6) = (3) X (5)
A4: 0 | B4: 0
A5: 15 | B5: 1.52 | C5: =B5-B4 -> 1.52 | D5: =C5/$D$17 -> 6.08 | E5: =0.29*(1-0.72*EXP(-0.082*D5)) -> 0.1631739001 | F5: =C5*E5 -> 0.2480243281
A6: 30 | B6: 15.74 | C6: =B6-B5 -> 14.22 | D6: 56.88 | E6: 0.2880316082 | F6: =C6*E6 -> 4.095809469
A7: 45 | B7: 41.9 | C7: 26.16 | D7: 104.64 | E7: 0.289960801 | F7: 7.585374553
A8: 60 | B8: 73.4 | C8: 31.5 | D8: 126 | E8: 0.2899931986 | F8: 9.134785755
A9: 75 | B9: 81.78 | C9: 8.38 | D9: 33.52 | E9: 0.2766336968 | F9: 2.318190379
A10: 90 | B10: 82.03 | C10: 0.25 | D10: 1 | E10: 0.09763841502 | F10: 0.02440960376
A11: 105 | B11: 82.03 | C11: 0
E12: Ec (Mj ha-1) = | F12: =SUM(F5:F10) -> 23.40659409
A13: (3) DRi = Ri - Ri-1;
A14: (4) ri = Dri / Dt;
A15: (5) | E15: com ec em MJ ha-1 mm-1 e r em mm/h
A17: Dt = | B17: 15 | C17: min = | D17: =15/60 -> 0.25 | E17: h
A18: r30 = | B18: =(C7+C8)/0.5 -> 115.32 | C18: mm/h
A19: Ecr30 = | B19: =F12*B18 -> 2699.24843 | C19: (MJ mm ha-1 h-1)
A36: NOTA: A expressão utilizada para estimar a energia cinética unitária da precipitação é a proposta pela RUSLE2 e não a apresentada no powerpoint relativo à RUSLE.
